fUST/lending_fUST_20260624
["ID","MTS","AMOUNT","RATE_DAILY","PERIOD"]
[426319737,1782300642000,-300.0,0.00024982,10]
[426319741,1782300642000,-300.0,0.00024982,10]
[426319740,1782300642000,-300.0,0.00024982,10]
[426319744,1782300642000,-600.0,0.00025022,10]
[426319746,1782300642000,-581.78907609,0.00025186,2]
[426319750,1782300642000,-30398.9062,0.00025444,2]
[426319745,1782300642000,-623.91143449,0.0002509,2]
[426319751,1782300642000,-541.62082463,0.00025521,2]
[426319748,1782300642000,-599.86432322,0.000254,2]
[426319734,1782300642000,-300.0,0.00024982,10]
[426319720,1782300642000,-788.57135943,0.00024841,3]
[426319691,1782300642000,-602.0,0.00024617,2]
[426319721,1782300642000,-195.16749077,0.00024891,2]
[426319756,1782300642000,-1400.72,0.00025532,3]
[426319703,1782300642000,-500.0,0.00024617,2]
[426319693,1782300642000,-602.0,0.00024617,2]
[426319702,1782300642000,-500.0,0.00024617,2]
[426319694,1782300642000,-602.0,0.00024617,2]
[426319692,1782300642000,-602.0,0.00024617,2]
[426319700,1782300642000,-602.0,0.00024617,2]
[426319698,1782300642000,-602.0,0.00024617,2]
[426319696,1782300642000,-602.0,0.00024617,2]
[426319695,1782300642000,-602.0,0.00024617,2]
[426319697,1782300642000,-602.0,0.00024617,2]
[426319701,1782300642000,-617.78766678,0.00024617,2]
[426319699,1782300642000,-602.0,0.00024617,2]
[426319723,1782300642000,-459.50290221,0.00024891,2]
[426319705,1782300642000,-470.30249975,0.00024617,2]
[426319716,1782300642000,-1005.0,0.00024782,3]
[426319706,1782300642000,-171.00275813,0.00024617,2]
[426319708,1782300642000,-1758.21163,0.00024617,2]
[426319709,1782300642000,-1758.21163,0.00024617,2]
[426319704,1782300642000,-500.0,0.00024617,2]
[426319707,1782300642000,-1758.21163,0.00024617,2]
[426319710,1782300642000,-1758.211638,0.00024617,2]
[426319711,1782300642000,-4610.16940279,0.00024681,2]
[426319713,1782300642000,-1005.0,0.00024714,3]
[426319714,1782300642000,-1005.0,0.00024714,3]
[426319712,1782300642000,-1005.0,0.00024714,3]
[426319717,1782300642000,-797.0,0.000248,2]
[426319725,1782300642000,-827.10522398,0.00024891,2]
[426319715,1782300642000,-1005.0,0.00024782,3]
[426319753,1782300642000,-8921.34,0.00025532,3]
[426319690,1782300642000,-602.0,0.00024617,2]
[426319754,1782300642000,-5602.88,0.00025532,3]
[426319788,1782300642000,-1816.525076,0.00028978,120]
[426319790,1782300642000,-205.644348,0.00028978,14]
[426319787,1782300642000,-180.32539916,0.00028807,2]
[426319785,1782300642000,-179.26,0.00028383,7]
[426319793,1782300642000,-331.224911,0.00029134,2]
[426319792,1782300642000,-209.183979,0.00028978,14]
[426319789,1782300642000,-160.0,0.00028978,14]
[426319791,1782300642000,-251.288696,0.00028978,14]
[426319795,1782300642000,-5931.5418641,0.00029569,2]
[426319797,1782300642000,-186.0,0.00029755,2]
[426319798,1782300642000,-445.0,0.00029755,2]
[426319801,1782300642000,-836.68907807,0.0003,120]
[426319803,1782300642000,-331.224911,0.00030184,2]
[426319786,1782300642000,-200.0,0.00028754,2]
[426319806,1782300642000,-1342.53495363,0.000309,120]
[426319804,1782300642000,-864.0,0.00030276,30]
[426319802,1782300642000,-187.24404013,0.0003,120]
[426319805,1782300642000,-657.02265876,0.00030338,2]
[426319800,1782300642000,-505.84587556,0.0003,120]
[426319808,1782300642000,-161.19109879,0.00031114,2]
[426319807,1782300642000,-224.62103835,0.00031114,2]
[426319809,1782300642000,-250.0,0.00031573,2]
[426319810,1782300642000,-1342.53495363,0.000318,120]
[426319813,1782300642000,-186.0,0.00032755,2]
[426319812,1782300642000,-719.755219,0.00032455,14]
[426319814,1782300642000,-641.52945145,0.000328,120]
[426319811,1782300642000,-501.83608743,0.00032,120]
[426319747,1782300642000,-581.78907609,0.00025256,2]
[426319799,1782300642000,-1842.0,0.00029755,2]
[426319783,1782300642000,-331.224911,0.00028085,2]
[426319796,1782300642000,-1110.9567843,0.00029569,2]
[426319784,1782300642000,-200.0,0.00028267,2]
[426319755,1782300642000,-2801.44,0.00025532,3]
[426319794,1782300642000,-2295.21699656,0.00029428,2]
[426319749,1782300642000,-581.78907609,0.00025404,2]
[426319758,1782300642000,-672.2615183,0.00025545,2]
[426319769,1782300642000,-3751.81339,0.00026304,2]
[426319768,1782300642000,-581.78907609,0.00026069,2]
[426319757,1782300642000,-700.36,0.00025532,3]
[426319760,1782300642000,-267.37369326,0.00025675,7]
[426319759,1782300642000,-177.47,0.00025625,2]
[426319770,1782300642000,-369.94519074,0.00026406,2]
[426319761,1782300642000,-672.2615183,0.00025694,2]
[426319763,1782300642000,-541.62082463,0.00025711,2]
[426319762,1782300642000,-735.80994607,0.00025698,2]
[426319766,1782300642000,-541.62082463,0.00025916,2]
[426319764,1782300642000,-773.36017703,0.00025837,2]
[426319752,1782300642000,-350.18,0.00025522,3]
[426319765,1782300642000,-480.8658,0.000259,3]
[426319767,1782300642000,-331.224911,0.00025985,2]
[426319780,1782300642000,-720.0,0.00027524,30]
[426319779,1782300642000,-331.224911,0.00027035,2]
[426319781,1782300642000,-328.45,0.0002778,2]
[426319778,1782300642000,-7327.891275,0.00026841,2]
[426319774,1782300642000,-267.37369329,0.00026626,7]
[426319782,1782300642000,-152.76,0.00027798,7]
[426319773,1782300642000,-581.78907609,0.00026575,2]
[426319776,1782300642000,-473.228,0.00026755,2]
[426319772,1782300642000,-1470.40928708,0.00026567,2]
[426319777,1782300642000,-1842.0,0.00026755,2]
[426319771,1782300642000,-581.78907609,0.00026483,2]
[426319775,1782300642000,-197.651,0.00026755,2]
[426319842,1782300643000,-163.599341,0.00038,120]
[426319841,1782300643000,-11128.00159755,0.00038,120]
[426319843,1782300643000,-265.80760773,0.00038,30]
[426319830,1782300643000,-457.89713398,0.00036415,4]
[426319840,1782300643000,-161.67,0.00037301,30]
[426319836,1782300643000,-3006.690698,0.00037054,120]
[426319832,1782300643000,-1000.0,0.00036634,30]
[426319837,1782300643000,-160.0,0.00037054,21]
[426319838,1782300643000,-340.380079,0.00037054,21]
[426319839,1782300643000,-520.760158,0.00037054,21]
[426319823,1782300643000,-1110.9567843,0.00034771,2]
[426319831,1782300643000,-151.0,0.000366,16]
[426319829,1782300643000,-500.0,0.000361,5]
[426319820,1782300643000,-402.0,0.00034,120]
[426319828,1782300643000,-186.0,0.00035755,2]
[426319826,1782300643000,-222.02,0.00035571,30]
[426319824,1782300643000,-15098.90537772,0.00035,60]
[426319827,1782300643000,-250.0,0.00035616,38]
[426319822,1782300643000,-5931.5418641,0.00034771,2]
[426319819,1782300643000,-1342.53495363,0.000338,120]
[426319821,1782300643000,-500.0,0.00034295,5]
[426319818,1782300643000,-1000.0,0.00033304,30]
[426319817,1782300643000,-500.0,0.00032877,10]
[426319816,1782300643000,-200.0,0.00032848,120]
[426319815,1782300643000,-701.00550218,0.000328,120]
[426319834,1782300643000,-201.120553,0.00037054,120]
[426319825,1782300643000,-4610.16940279,0.00035129,2]
[426319833,1782300643000,-244.0,0.00036634,30]
[426319865,1782300643000,-300.0,0.00038411,120]
[426319844,1782300643000,-500.0,0.00038,5]
[426319871,1782300643000,-46760.4579068,0.00038805,30]
[426319867,1782300643000,-186.0,0.00038755,2]
[426319866,1782300643000,-299.273796,0.00038411,120]
[426319862,1782300643000,-300.0,0.00038411,120]
[426319860,1782300643000,-300.0,0.00038411,120]
[426319864,1782300643000,-300.0,0.00038411,120]
[426319863,1782300643000,-300.0,0.00038411,120]
[426319857,1782300643000,-300.0,0.00038411,120]
[426319861,1782300643000,-300.0,0.00038411,120]
[426319835,1782300643000,-201.120554,0.00037054,21]
[426319858,1782300643000,-300.0,0.00038411,120]
[426319870,1782300643000,-284.62,0.000388,120]
[426319868,1782300643000,-1200.0,0.00038767,120]
[426319859,1782300643000,-300.0,0.00038411,120]
[426319849,1782300643000,-1000.0,0.00038356,30]
[426319846,1782300643000,-193.14889207,0.000382,2]
[426319852,1782300643000,-1000.0,0.00038356,30]
[426319869,1782300643000,-302.86740762,0.00038767,120]
[426319856,1782300643000,-1584.0,0.00038356,30]
[426319854,1782300643000,-1000.0,0.00038356,30]
[426319850,1782300643000,-1000.0,0.00038356,30]
[426319848,1782300643000,-1068.42664596,0.00038331,7]
[426319853,1782300643000,-1000.0,0.00038356,30]
[426319847,1782300643000,-284.62,0.000383,120]
[426319845,1782300643000,-193.14889208,0.000382,2]
[426319855,1782300643000,-1000.0,0.00038356,30]
[426319851,1782300643000,-1000.0,0.00038356,30]
[426319938,1782300646000,-703.31607123,0.00038805,30]
[426319934,1782300646000,-3576.91254535,0.00038805,30]
[426319932,1782300646000,-1000.0,0.00028754,4]
[426319933,1782300646000,-21291.35696604,0.00038805,30]
[426319935,1782300646000,-1561.04830888,0.00038805,30]
[426319936,1782300646000,-14178.19398841,0.00038805,30]
[426319939,1782300646000,-2099.5223355,0.00038805,30]
[426319975,1782300646000,-5684.42941324,0.00038805,30]
[426319958,1782300646000,-628.1247688,0.00038805,30]
[426319971,1782300646000,-1919.112,0.00026755,2]
[426319972,1782300646000,-5048.288,0.00038805,30]
[426319973,1782300646000,-78077.13873452,0.00038805,30]
[426319974,1782300646000,-29107.67765022,0.00038805,30]
[426319977,1782300646000,-13270.57507934,0.00038805,30]
[426319979,1782300646000,-379.01511469,0.00038805,30]
[426319937,1782300646000,-34549.46911931,0.00038805,30]
[426319981,1782300767000,-212.28252782,0.00023529,13]
[426319982,1782300825000,200.0,0.00025,120]
[426319983,1782300933000,865.46,0.00023904,30]
[426320010,1782301450000,-500.0,0.00028651,10]
[426320004,1782301450000,-220.99883287,0.00020281,5]
[426320005,1782301450000,-521.73353126,0.00020492,13]
[426320007,1782301450000,-200.0,0.00027099,2]
[426320008,1782301450000,-196.651,0.00028212,2]
[426320009,1782301450000,-445.0,0.00028212,2]
[426320006,1782301450000,-212.28252782,0.00020699,13]
[426320012,1782301450000,-797.0,0.000299,2]
[426320013,1782301450000,-186.0,0.00031212,2]
[426320014,1782301450000,-243.6351836,0.00032994,2]
[426320015,1782301450000,-186.0,0.00034212,2]
[426320016,1782301450000,-250.0,0.00035616,38]
[426320017,1782301450000,-323.35382996,0.000361,5]
[426320011,1782301450000,-500.0,0.00028889,11]
[426320035,1782301451000,-151.0,0.00038805,14]
[426320034,1782301451000,-151.0,0.00038805,14]
[426320033,1782301451000,-151.0,0.00038805,14]
[426320032,1782301451000,-151.0,0.00038805,14]
[426320031,1782301451000,-151.0,0.00038805,14]
[426320030,1782301451000,-299.93216161,0.000388,2]
[426320029,1782301451000,-257.52,0.000388,120]
[426320028,1782301451000,-193.14889207,0.0003878,2]
[426320024,1782301451000,-257.52,0.000383,120]
[426320026,1782301451000,-645.35093364,0.00038777,11]
[426320025,1782301451000,-4000.2767,0.000385,120]
[426320022,1782301451000,-4659.8016991,0.00038091,2]
[426320021,1782301451000,-500.0,0.00038,5]
[426320020,1782301451000,-2305.08470139,0.00037592,2]
[426320019,1782301451000,-186.0,0.00037212,2]
[426320018,1782301451000,-152.24,0.00036288,7]
[426320036,1782301451000,-151.0,0.00038805,14]
[426320027,1782301451000,-1958803.698484,0.00038778,2]
[426320037,1782301451000,-151.0,0.00038805,14]
[426320023,1782301451000,-1110.9567844,0.00038091,2]
[426320039,1782301451000,-292.0,0.00038805,14]
[426320040,1782301451000,-369.79444405,0.00038877,15]
[426320055,1782301451000,-1758.83876845,0.00038877,15]
[426320053,1782301451000,-1758.83876845,0.00038877,15]
[426320056,1782301451000,-1758.83876845,0.00038877,15]
[426320054,1782301451000,-511.52709842,0.00038877,15]
[426320052,1782301451000,-500.0,0.00038877,15]
[426320049,1782301451000,-1758.83876845,0.00038877,15]
[426320051,1782301451000,-170.80353679,0.00038877,15]
[426320050,1782301451000,-1758.83876845,0.00038877,15]
[426320057,1782301451000,-1758.83876845,0.00038877,15]
[426320047,1782301451000,-500.0,0.00038877,15]
[426320045,1782301451000,-1758.83876845,0.00038877,15]
[426320046,1782301451000,-1758.83876845,0.00038877,15]
[426320044,1782301451000,-500.0,0.00038877,15]
[426320043,1782301451000,-500.0,0.00038877,15]
[426320042,1782301451000,-500.0,0.00038877,15]
[426320041,1782301451000,-500.0,0.00038877,15]
[426320038,1782301451000,-151.0,0.00038805,14]
[426320048,1782301451000,-500.0,0.00038877,15]
[426320073,1782301452000,-1758.83876845,0.00038877,15]
[426320071,1782301452000,-1758.83876845,0.00038877,15]
[426320072,1782301452000,-1758.83876845,0.00038877,15]
[426320070,1782301452000,-1758.83876845,0.00038877,15]
[426320068,1782301452000,-1758.83876845,0.00038877,15]
[426320069,1782301452000,-1758.83876845,0.00038877,15]
[426320067,1782301452000,-1758.83876845,0.00038877,15]
[426320063,1782301452000,-1758.83876845,0.00038877,15]
[426320066,1782301452000,-1758.83876845,0.00038877,15]
[426320064,1782301452000,-1758.83876845,0.00038877,15]
[426320061,1782301452000,-1758.83876845,0.00038877,15]
[426320062,1782301452000,-1758.83876845,0.00038877,15]
[426320060,1782301452000,-1758.83876845,0.00038877,15]
[426320059,1782301452000,-1758.83876845,0.00038877,15]
[426320058,1782301452000,-1758.83876845,0.00038877,15]
[426320065,1782301452000,-1758.83876845,0.00038877,15]
[426320074,1782301452000,-1758.83876845,0.00038877,15]
[426320075,1782301452000,-1758.83876845,0.00038877,15]
[426320078,1782301452000,-1758.83876845,0.00038877,15]
[426320076,1782301452000,-1758.83876845,0.00038877,15]
[426320092,1782301452000,-1758.83876845,0.00038877,15]
[426320090,1782301452000,-1758.83876845,0.00038877,15]
[426320091,1782301452000,-1758.83876845,0.00038877,15]
[426320089,1782301452000,-1758.83876845,0.00038877,15]
[426320087,1782301452000,-1758.83876845,0.00038877,15]
[426320086,1782301452000,-1758.83876845,0.00038877,15]
[426320088,1782301452000,-1758.83876845,0.00038877,15]
[426320083,1782301452000,-1758.83876845,0.00038877,15]
[426320084,1782301452000,-1758.83876845,0.00038877,15]
[426320082,1782301452000,-1758.83876845,0.00038877,15]
[426320081,1782301452000,-1758.83876845,0.00038877,15]
[426320079,1782301452000,-1758.83876845,0.00038877,15]
[426320080,1782301452000,-1758.83876845,0.00038877,15]
[426320077,1782301452000,-1758.83876845,0.00038877,15]
[426320085,1782301452000,-1758.83876845,0.00038877,15]
[426320103,1782301453000,-1762.86903765,0.00038877,15]
[426320107,1782301453000,-1762.86903765,0.00038877,15]
[426320105,1782301453000,-1762.86903765,0.00038877,15]
[426320106,1782301453000,-1762.86903765,0.00038877,15]
[426320104,1782301453000,-1762.86903765,0.00038877,15]
[426320102,1782301453000,-1758.83876845,0.00038877,15]
[426320101,1782301453000,-1758.83876845,0.00038877,15]
[426320095,1782301453000,-1758.83876845,0.00038877,15]
[426320100,1782301453000,-1758.83876845,0.00038877,15]
[426320096,1782301453000,-1758.83876845,0.00038877,15]
[426320099,1782301453000,-1758.83876845,0.00038877,15]
[426320098,1782301453000,-1758.83876845,0.00038877,15]
[426320097,1782301453000,-1758.83876845,0.00038877,15]
[426320094,1782301453000,-1758.83876845,0.00038877,15]
[426320093,1782301453000,-1758.83876845,0.00038877,15]
[426320109,1782301453000,-1762.86903765,0.00038877,15]
[426320110,1782301453000,-1762.86903765,0.00038877,15]
[426320120,1782301453000,-1762.86903765,0.00038877,15]
[426320111,1782301453000,-1762.86903765,0.00038877,15]
[426320128,1782301453000,-1762.86903765,0.00038877,15]
[426320127,1782301453000,-1762.86903765,0.00038877,15]
[426320126,1782301453000,-1762.86903765,0.00038877,15]
[426320124,1782301453000,-1762.86903765,0.00038877,15]
[426320123,1782301453000,-1762.86903765,0.00038877,15]
[426320125,1782301453000,-1762.86903765,0.00038877,15]
[426320122,1782301453000,-1762.86903765,0.00038877,15]
[426320119,1782301453000,-1762.86903765,0.00038877,15]
[426320108,1782301453000,-1762.86903765,0.00038877,15]
[426320118,1782301453000,-1762.86903765,0.00038877,15]
[426320115,1782301453000,-1762.86903765,0.00038877,15]
[426320117,1782301453000,-1762.86903765,0.00038877,15]
[426320116,1782301453000,-1762.86903765,0.00038877,15]
[426320112,1782301453000,-1762.86903765,0.00038877,15]
[426320114,1782301453000,-1762.86903765,0.00038877,15]
[426320113,1782301453000,-1762.86903765,0.00038877,15]
[426320121,1782301453000,-1762.86903765,0.00038877,15]
[426320145,1782301454000,-331.0200007,0.00039178,7]
[426320143,1782301454000,-163.0,0.00039,120]
[426320142,1782301454000,-1584.0,0.00038904,30]
[426320140,1782301454000,-282.27,0.0003888,2]
[426320141,1782301454000,-184314.262896,0.000389,120]
[426320139,1782301454000,-127606.51637985,0.0003888,2]
[426320138,1782301454000,-1762.86903762,0.00038877,15]
[426320137,1782301454000,-1762.86903763,0.00038877,15]
[426320134,1782301454000,-1762.86903763,0.00038877,15]
[426320135,1782301454000,-1762.86903763,0.00038877,15]
[426320133,1782301454000,-1762.86903763,0.00038877,15]
[426320131,1782301454000,-1762.86903765,0.00038877,15]
[426320130,1782301454000,-1762.86903765,0.00038877,15]
[426320132,1782301454000,-1762.86903765,0.00038877,15]
[426320129,1782301454000,-1762.86903765,0.00038877,15]
[426320146,1782301454000,-327.0061742,0.00039178,7]
[426320136,1782301454000,-1762.86903763,0.00038877,15]
[426320144,1782301454000,-682.23343778,0.00039,120]
[426320148,1782301454000,-257.52,0.000393,120]
[426320149,1782301454000,-151.5,0.00039326,60]
[426320165,1782301454000,-500.0,0.00039999,30]
[426320163,1782301454000,-500.0,0.00039999,30]
[426320164,1782301454000,-500.0,0.00039999,30]
[426320162,1782301454000,-500.0,0.00039999,30]
[426320161,1782301454000,-500.0,0.00039999,30]
[426320159,1782301454000,-500.0,0.00039999,30]
[426320160,1782301454000,-500.0,0.00039999,30]
[426320157,1782301454000,-10000.0,0.00039899,2]
[426320166,1782301454000,-500.0,0.00039999,30]
[426320155,1782301454000,-257.52,0.000398,120]
[426320156,1782301454000,-231.9978657,0.00039879,2]
[426320153,1782301454000,-1000.0,0.000396,60]
[426320154,1782301454000,-1194.92983876,0.000398,30]
[426320151,1782301454000,-1039.7422993,0.00039553,2]
[426320152,1782301454000,-600.0,0.0003958,60]
[426320147,1782301454000,-160.0,0.000392,2]
[426320150,1782301454000,-1584.0,0.00039452,30]
[426320158,1782301454000,-500.0,0.00039999,30]
[426320182,1782301455000,-500.0,0.00039999,60]
[426320180,1782301455000,-500.0,0.00039999,60]
[426320181,1782301455000,-500.0,0.00039999,60]
[426320179,1782301455000,-500.0,0.00039999,60]
[426320176,1782301455000,-500.0,0.00039999,30]
[426320177,1782301455000,-633.32989575,0.00039999,30]
[426320175,1782301455000,-500.0,0.00039999,30]
[426320170,1782301455000,-500.0,0.00039999,30]
[426320174,1782301455000,-500.0,0.00039999,30]
[426320171,1782301455000,-500.0,0.00039999,30]
[426320172,1782301455000,-500.0,0.00039999,30]
[426320169,1782301455000,-500.0,0.00039999,30]
[426320167,1782301455000,-500.0,0.00039999,30]
[426320168,1782301455000,-500.0,0.00039999,30]
[426320183,1782301455000,-500.0,0.00039999,60]
[426320178,1782301455000,-500.0,0.00039999,60]
[426320185,1782301455000,-500.0,0.00039999,60]
[426320173,1782301455000,-500.0,0.00039999,30]
[426320184,1782301455000,-500.0,0.00039999,60]
[426320203,1782301455000,-1758.83876845,0.00039999,31]
[426320201,1782301455000,-1758.83876845,0.00039999,31]
[426320199,1782301455000,-1758.83876845,0.00039999,31]
[426320200,1782301455000,-1758.83876845,0.00039999,31]
[426320198,1782301455000,-1758.83876845,0.00039999,31]
[426320196,1782301455000,-279.05856649,0.00039999,31]
[426320197,1782301455000,-1758.83876845,0.00039999,31]
[426320202,1782301455000,-1758.83876845,0.00039999,31]
[426320186,1782301455000,-500.0,0.00039999,60]
[426320192,1782301455000,-514.62292062,0.00039999,60]
[426320194,1782301455000,-362.85370278,0.00039999,31]
[426320193,1782301455000,-500.0,0.00039999,31]
[426320191,1782301455000,-388.46953581,0.00039999,60]
[426320189,1782301455000,-500.0,0.00039999,60]
[426320190,1782301455000,-500.0,0.00039999,60]
[426320187,1782301455000,-500.0,0.00039999,60]
[426320188,1782301455000,-500.0,0.00039999,60]
[426320195,1782301455000,-185.64483742,0.00039999,31]
[426320207,1782301456000,-2350.49205019,0.00039999,31]
[426320206,1782301456000,-2350.49205019,0.00039999,31]
[426320204,1782301456000,-1758.83876845,0.00039999,31]
[426320208,1782301456000,-1236.77,0.0004,30]
[426320209,1782301456000,-986121.49492657,0.0004,30]
[426320205,1782301456000,-2350.49205019,0.00039999,31]
[426320212,1782301559000,-883.73193006,0.00028326,2]
[426320213,1782301641000,-223.3069879,0.00028326,2]
[426320214,1782301717000,-734.96108204,0.00028326,2]
[426320215,1782301717000,-1419.0,0.00028326,2]
[426320217,1782301717000,-200.0,0.00030444,2]
[426320216,1782301717000,-299.0,0.000299,2]
[426320220,1782301717000,-200.0,0.00031428,2]
[426320219,1782301717000,-1419.0,0.00031326,2]
[426320218,1782301717000,-200.0,0.00030936,2]
[426320221,1782301717000,-200.0,0.0003192,2]
[426320223,1782301717000,-208.46,0.000383,120]
[426320225,1782301717000,-193.14889207,0.000387,2]
[426320226,1782301717000,-1152.5423507,0.00038702,2]
[426320227,1782301717000,-1993083.56215819,0.00038778,2]
[426320222,1782301717000,-500.0,0.00038,5]
[426320224,1782301717000,-190.325517,0.00038675,2]
[426320380,1782301838000,-150.93,0.00028326,2]
[426320378,1782301838000,-151.263,0.00028326,2]
[426320377,1782301838000,-150.491,0.00028326,2]
[426320379,1782301838000,-232.959,0.00028326,2]
[426320385,1782301838000,-500.0,0.00038,5]
[426320392,1782301838000,-16733.62869213,0.0003877,30]
[426320388,1782301838000,-576.27117535,0.00038702,2]
[426320383,1782301838000,-152.00651726,0.00031601,13]
[426320389,1782301838000,-148.7646016,0.0003877,30]
[426320384,1782301838000,-200.0,0.0003192,7]
[426320391,1782301838000,-1387.56261895,0.0003877,30]
[426320387,1782301838000,-4068.2794943,0.000387,2]
[426320386,1782301838000,-198.54,0.000383,120]
[426320382,1782301838000,-150.0,0.00031326,2]
[426320390,1782301838000,-47362.8364864,0.0003877,30]
[426320381,1782301838000,-250.0,0.00028326,2]
[426320409,1782301841000,-4874.25147268,0.0003877,30]
[426320408,1782301841000,-268.952,0.00028326,2]
[426320449,1782301845000,-4133.93835324,0.0003877,30]
[426320450,1782301845000,-1381.08291742,0.0003877,30]
[426320448,1782301845000,-3278.99187919,0.0003877,30]
[426320470,1782301847000,-57449.29563631,0.0003877,30]
[426320475,1782302259000,12000.0,7.6e-05,2]
[426320476,1782302307000,160.48749432,0.0002472,120]
[426320477,1782302435000,-510.87966092,0.0001,2]
[426320478,1782302451000,-215.08095502,0.0001,2]
[426320479,1782302468000,-679.50473226,0.0001,2]
[426320480,1782302485000,-500.0,0.00011999,2]
[426320481,1782302502000,-2851.23376931,0.00011999,2]
[426320482,1782302519000,-500.0,0.00011999,2]
[426320483,1782302536000,-500.0,0.00011999,2]
[426320484,1782302553000,-500.0,0.00011999,2]
[426320487,1782302658000,511.0,8.604e-05,2]
[426320492,1782302672000,-500.0,0.00011999,2]
[426320490,1782302672000,-500.0,0.00011999,2]
[426320489,1782302672000,-500.0,0.00011999,2]
[426320488,1782302672000,-500.0,0.00011999,2]
[426320491,1782302672000,-500.0,0.00011999,2]
[426320510,1782302673000,-500.0,0.00011999,2]
[426320506,1782302673000,-500.0,0.00011999,2]
[426320505,1782302673000,-500.0,0.00011999,2]
[426320507,1782302673000,-500.0,0.00011999,2]
[426320502,1782302673000,-500.0,0.00011999,2]
[426320504,1782302673000,-500.0,0.00011999,2]
[426320503,1782302673000,-500.0,0.00011999,2]
[426320500,1782302673000,-500.0,0.00011999,2]
[426320498,1782302673000,-500.0,0.00011999,2]
[426320499,1782302673000,-500.0,0.00011999,2]
[426320497,1782302673000,-500.0,0.00011999,2]
[426320495,1782302673000,-500.0,0.00011999,2]
[426320496,1782302673000,-500.0,0.00011999,2]
[426320494,1782302673000,-500.0,0.00011999,2]
[426320493,1782302673000,-500.0,0.00011999,2]
[426320501,1782302673000,-500.0,0.00011999,2]
[426320509,1782302673000,-500.0,0.00011999,2]
[426320508,1782302673000,-302.67620979,0.00011999,2]
[426320514,1782302673000,-500.0,0.00011999,2]
[426320511,1782302673000,-500.0,0.00011999,2]
[426320529,1782302673000,-99360.5820656,0.00022,2]
[426320528,1782302673000,-15188.94040453,0.00022,2]
[426320527,1782302673000,-176.95,0.00021695,2]
[426320526,1782302673000,-13048.264083,0.000215,2]
[426320524,1782302673000,-5000.0,0.00018593,2]
[426320525,1782302673000,-161.783,0.00020347,2]
[426320523,1782302673000,-5000.0,0.00018593,2]
[426320520,1782302673000,-9301.63855715,0.00018593,2]
[426320521,1782302673000,-5000.0,0.00018593,2]
[426320519,1782302673000,-9209.29352489,0.00018,2]
[426320518,1782302673000,-3403.82114528,0.00016,2]
[426320516,1782302673000,-38145.48065098,0.00012,2]
[426320517,1782302673000,-860.66775088,0.000158,2]
[426320515,1782302673000,-500.00000001,0.00011999,2]
[426320512,1782302673000,-500.0,0.00011999,2]
[426320513,1782302673000,-500.0,0.00011999,2]
[426320522,1782302673000,-5000.0,0.00018593,2]
[426320530,1782302674000,-4518.81083294,0.000222,2]
[426320531,1782302674000,-1848.24235855,0.00023,2]
[426320532,1782302674000,-226.2504255,0.00023416,2]
[426320533,1782302674000,-1190.0392475,0.00023662,2]
[426320534,1782302674000,-778.15467327,0.00023713,2]
[426320535,1782302674000,-768778.40507013,0.00024249,2]
[426320539,1782302731000,-980.01843801,0.000157,2]
[426320540,1782302930000,-3000.0,0.000243,2]
[426320541,1782302930000,-3000.0,0.0002431,2]
[426320543,1782302930000,-3000.0,0.0002433,2]
[426320542,1782302930000,-3000.0,0.0002432,2]
[426320544,1782302930000,-3000.0,0.0002434,2]
[426320545,1782302930000,-3000.0,0.0002435,2]
[426320546,1782302930000,-3000.0,0.0002436,2]
[426320549,1782302930000,-2616.703413,0.00024813,2]
[426320548,1782302930000,-279.47,0.0002472,2]
[426320551,1782302930000,-2616.703413,0.00024813,2]
[426320550,1782302930000,-2616.703413,0.00024813,2]
[426320547,1782302930000,-3765.3278,0.0002437,2]
[426320554,1782302931000,-2392.578121,0.00024813,2]